Workbook

Sheet Break-Even Simple
C5: Sales Revenue | E5: =C5&" "&TEXT(G5,"0.0%") -> Sales Revenue 100.0% | F5: =Revenues -> 5000 | G5: =IF(Revenues=0,"",F5/Revenues) -> 1
C6: Cost of Sales | E6: =C6&" "&TEXT(G6,"0.0%") -> Cost of Sales 80.0% | F6: =Cost_of_Sales -> 4000 | G6: 0.8
C7: =LabelGP -> Gross Profit | E7: =C7&" "&TEXT(G7,"0.0%") -> Gross Profit 20.0% | F7: =Gross_Profit -> 1000 | G7: 0.2
C8: Allocated Fixed Expenses | E8: =C8&" "&TEXT(G8,"0.0%") -> Allocated Fixed Expenses 10.0% | F8: =AllocatedFixedCosts -> 500 | G8: 0.1
C9: Income Before Tax | E9: =C9&" "&TEXT(G9,"0.0%") -> Income Before Tax 10.0% | F9: =F7-F8 -> 500 | G9: 0.1
C10: Income Taxes | D10: 100 | E10: =C10&" "&TEXT(G10,"0.0%") -> Income Taxes 2.0% | G10: =IF(Revenues=0,"",D10/Revenues) -> 0.02
C11: Net Income (Loss) | E11: =C11&" "&TEXT(G11,"0.0%") -> Net Income (Loss) 8.0% | F11: =F9-D10 -> 400 | G11: 0.08
E14: LastGoodSpinnerValue | F14: 69.75919342
C15: FixedOverhead | D15: 500 | E15: FixedOverhead
C18: =PartItemName & " sold during What-If scenario" -> sold during What-If scenario | D18: 0 | E18: =IF(Revenues = 0, Units_Sold, Revenues/Price) -> 166.6666667 | F18: =2*E18 -> 333.3333333 | G18: quantity
C19: Sales Revenue | D19: =Price*D18 -> 0 | E19: =Price*E18 -> 5000 | F19: =Price*F18 -> 10000
C20: Cost of Sales | D20: =Unit_Cost*D18+D21 -> 500 | E20: =Unit_Cost*E18+E21 -> 4666.666667 | F20: =Unit_Cost*F18+F21 -> 8833.333333
C21: Fixed Expenses | D21: =AllocatedFixedCosts -> 500 | E21: =AllocatedFixedCosts -> 500 | F21: =AllocatedFixedCosts -> 500
D23: Revenues | E23: Units Sold | G23: Price | H23: Unit Cost | I23: Cost of Sales | K23: Gross Profit | L23: =LabelGP& " %" -> Gross Profit %
C24: Enter Data: | D24: 5000 | G24: 30 | H24: 25 | I24: 4000 | K24: =Revenues-Cost_of_Sales -> 1000 | L24: =IF(Revenues=0,0,Gross_Profit/Revenues) -> 0.2
C25: Breakeven Point: | D25: =IF( ISERROR(BreakevenQty*Price), " NA", BreakevenQty*Price) -> 3000 | E25: =IF( (Price-Unit_Cost) = 0, "NA", AllocatedFixedCosts/(Price-Unit_Cost)) -> 100 | G25: =Price -> 30 | H25: =Unit_Cost -> 25 | I25: =IF( ISERROR(BreakevenQty*Unit_Cost), " NA", BreakevenQty*Unit_Cost) -> 2500 | K25: =IF( ISERROR(BreakevenREV-BreakevenCOS), " NA", BreakevenREV-BreakevenCOS) -> 500 | L25: =IF( ISERROR(BreakevenGP/BreakevenREV), " NA", BreakevenGP/BreakevenREV) -> 0.1666666667
K44: Value of Allocated Fixed Expenses: | M44: =D15 -> 500
